[Event "Prague Festival Futures 2024"]
[Site "Prague"]
[Date "2024.02.29"]
[Round "3.5"]
[White "Guntaka, Aayansh R"]
[Black "Mrozowski, Nikodem"]
[Result "1-0"]
[ECO "B57"]
[WhiteElo "1651"]
[BlackElo "1527"]
[Annotator "NA RC"]
[PlyCount "171"]
[EventDate "2024.02.22"]
[EventType "tourn"]
[EventCountry "CZE"]
[SourceTitle "playchess.com"]
[Source "ChessBase"]
[SourceQuality "1"]
[TimeControl "40/5400+30:1800+30"]

1. e4 {[%emt 0:00:03]} c5 {[%emt 0:00:22]} 2. Nf3 {[%emt 0:00:05]} d6 {[%emt 0:00:11]} 3. d4 {[%emt 0:00:04]} cxd4 {[%emt 0:00:14]} 4. Nxd4 {[%emt 0:00:07]} Nf6 {[%emt 0:00:12]} 5. Nc3 {[%emt 0:00:06]} Nc6 {[%emt 0:00:04]} 6. Bc4 {[%emt 0:00:06]} Qb6 {[%emt 0:00:31]} 7. Nb3 {[%emt 0:00:05]} a6 {[%emt 0:01:21]} 8. Bf4 {[%emt 0:04:39]} g6 {[%emt 0:03:44]} 9. O-O {[%emt 0:02:39]} Bg7 {[%emt 0:02:11]} 10. h3 {[%emt 0:05:49]} O-O {[%emt 0:02:46]} 11. Qd2 {[%emt 0:00:41]} Bd7 {[%emt 0:04:53]} 12. a4 {[%emt 0:08:25]} Na5 {[%emt 0:11:47]} 13. Nxa5 {[%emt 0:01:07]} Qxa5 {[%emt 0:00:02]} 14. Rfe1 {[%emt 0:07:08]} Rac8 {[%emt 0:04:19]} 15. Bb3 {[%emt 0:03:54]} Rfd8 {[%emt 0:05:21]} 16. Be3 {[%emt 0:09:01]} Bc6 {[%emt 0:16:44]} 17. f3 {[%emt 0:03:26]} Kh8 {[%emt 0:01:41]} 18. Bxf7 {[%emt 0:01:07]} Qb4 {[%emt 0:02:55]} 19. Nd1 {[%emt 0:14:01]} Qxd2 {[%emt 0:03:36]} 20. Bxd2 {[%emt 0:00:55]} Rf8 {[%emt 0:02:41]} 21. Bb3 {[%emt 0:01:42]} Nh5 {[%emt 0:00:49]} 22. c3 {[%emt 0:01:26]} Be5 {[%emt 0:00:23]} 23. Bh6 {[%emt 0:02:25]} Bg7 {[%emt 0:05:19]} 24. Bxg7+ {[%emt 0:00:58]} Kxg7 {[%emt 0:00:02]} 25. Ne3 {[%emt 0:00:31]} Nf4 {[%emt 0:00:12]} 26. Rad1 {[%emt 0:00:34]} b5 {[%emt 0:01:14]} 27. a5 {[%emt 0:00:55]} h5 {[%emt 0:01:34]} 28. Nd5 {[%emt 0:00:29]} Bxd5 {[%emt 0:00:23]} 29. exd5 {[%emt 0:00:10]} Rc7 {[%emt 0:00:55]} 30. h4 {[%emt 0:01:35]} g5 {[%emt 0:01:30]} 31. hxg5 {[%emt 0:00:38]} Rf5 {[%emt 0:00:19]} 32. g3 {[%emt 0:00:52]} Nh3+ {[%emt 0:01:39]} 33. Kg2 {[%emt 0:00:20]} Nxg5 {[%emt 0:00:14]} 34. f4 {[%emt 0:01:09]} Nh7 {[%emt 0:00:50]} 35. Bc2 {[%emt 0:00:55]} Rf7 {[%emt 0:00:36]} 36. Rd4 {[%emt 0:08:02]} Nf6 {[%emt 0:01:30]} 37. Bf5 {[%emt 0:00:20]} Nd7 {[%emt 0:03:58]} 38. Be6 {[%emt 0:02:30]} Rf6 {[%emt 0:00:37]} 39. Bxd7 {[%emt 0:02:40]} Rxd7 {[%emt 0:00:02]} 40. Rde4 {[%emt 0:00:13]} Kf7 {[%emt 0:00:58]} 41. Kf3 {[%emt 0:32:34]} Rf5 {[%emt 0:30:36]} 42. Rd4 {[%emt 0:00:40]} Rc7 {[%emt 0:00:50]} 43. g4 {[%emt 0:00:47]} hxg4+ {[%emt 0:00:08]} 44. Kxg4 {[%emt 0:00:09]} Rf6 {[%emt 0:00:55]} 45. f5 {[%emt 0:01:26]} Rh6 {[%emt 0:00:22]} 46. Kg3 {[%emt 0:01:06]} Rh5 {[%emt 0:00:57]} 47. Rf4 {[%emt 0:01:46]} Rc5 {[%emt 0:01:06]} 48. f6 {[%emt 0:00:13]} exf6 {[%emt 0:00:30]} 49. Re6 {[%emt 0:00:08]} f5 {[%emt 0:04:10]} 50. Rxd6 {[%emt 0:00:11]} Ke7 {[%emt 0:00:35]} 51. Rxa6 {[%emt 0:00:45]} Rxd5 {[%emt 0:00:06]} 52. Rd4 {[%emt 0:03:02]} Rxd4 {[%emt 0:01:47]} 53. cxd4 {[%emt 0:00:11]} b4 {[%emt 0:00:59]} 54. Rb6 {[%emt 0:00:12]} f4+ {[%emt 0:00:13]} 55. Kxf4 {[%emt 0:00:12]} Rxa5 {[%emt 0:00:11]} 56. Rxb4 {[%emt 0:00:07]} Kd6 {[%emt 0:01:00]} 57. Rb6+ {[%emt 0:02:27]} Kd5 {[%emt 0:00:22]} 58. Ke3 {[%emt 0:00:36]} Ra4 {[%emt 0:00:49]} 59. Rb5+ {[%emt 0:00:42]} Kc6 {[%emt 0:00:28]} 60. Rc5+ {[%emt 0:00:41]} Kd6 {[%emt 0:00:10]} 61. Ke4 {[%emt 0:00:18]} Rb4 {[%emt 0:00:17]} 62. Rc2 {[%emt 0:00:14]} Rb3 {[%emt 0:01:42]} 63. Rh2 {[%emt 0:04:10]} Ke6 {[%emt 0:00:45]} 64. d5+ {[%emt 0:02:49]} Kd6 {[%emt 0:00:52]} 65. Kd4 {[%emt 0:00:29]} Rb4+ {[%emt 0:00:07]} 66. Kc3 {[%emt 0:00:04]} Rb5 {[%emt 0:00:18]} 67. Rh5 {[%emt 0:00:18]} Rb7 {[%emt 0:00:52]} 68. b4 {[%emt 0:00:14]} Rc7+ {[%emt 0:00:34]} 69. Kd4 {[%emt 0:00:07]} Rc1 {[%emt 0:00:16]} 70. Rh6+ {[%emt 0:00:31]} Kd7 {[%emt 0:00:05]} 71. b5 {[%emt 0:00:16]} Rd1+ {[%emt 0:00:22]} 72. Kc5 {[%emt 0:00:06]} Rc1+ {[%emt 0:00:06]} 73. Kb6 {[%emt 0:00:06]} Rb1 {[%emt 0:00:18]} 74. Ka6 {[%emt 0:00:29]} Ra1+ {[%emt 0:00:34]} 75. Kb7 {[%emt 0:00:06]} Ra5 {[%emt 0:00:05]} 76. Rb6 {[%emt 0:02:45]} Ra4 {[%emt 0:00:32]} 77. Ra6 {[%emt 0:00:37]} Rd4 {[%emt 0:00:08]} 78. Ka7 {[%emt 0:01:27]} Rxd5 {[%emt 0:00:28]} 79. b6 {[%emt 0:00:08]} Rb5 {[%emt 0:00:08]} 80. Ra1 {[%emt 0:00:07]} Kc6 {[%emt 0:02:03]} 81. Rc1+ {[%emt 0:00:07]} Kd7 {[%emt 0:00:36]} 82. b7 {[%emt 0:00:13]} Rb2 {[%emt 0:00:22]} 83. b8=Q {[%emt 0:00:07]} Ra2+ {[%emt 0:00:06]} 84. Kb7 {[%emt 0:00:13]} Rb2+ {[%emt 0:00:04]} 85. Ka8 {[%emt 0:00:06]} Ra2+ {[%emt 0:00:08]} 86. Qa7+ {[%emt 0:00:09]} 1-0

[Event "Prague Festival Futures 2024"]
[Site "Prague"]
[Date "2024.03.01"]
[Round "4.1"]
[White "Siskou, Evangelia"]
[Black "Mrozowski, Nikodem"]
[Result "1-0"]
[ECO "B52"]
[WhiteElo "1680"]
[BlackElo "1527"]
[Annotator "NA RC"]
[PlyCount "141"]
[EventDate "2024.02.22"]
[EventType "tourn"]
[EventCountry "CZE"]
[SourceTitle "playchess.com"]
[Source "ChessBase"]
[SourceQuality "1"]
[TimeControl "40/5400+30:1800+30"]

1. e4 {[%emt 0:00:41]} c5 {[%emt 0:00:10]} 2. Nf3 {[%emt 0:00:26]} d6 {[%emt 0:00:43]} 3. Bb5+ {[%emt 0:00:27]} Bd7 {[%emt 0:00:18]} 4. Bxd7+ {[%emt 0:00:19]} Nxd7 {[%emt 0:00:14]} 5. O-O {[%emt 0:00:34]} Ngf6 {[%emt 0:01:14]} 6. Qe2 {[%emt 0:00:47]} e6 {[%emt 0:01:29]} 7. c3 {[%emt 0:02:32]} Be7 {[%emt 0:02:34]} 8. d4 {[%emt 0:02:00]} O-O {[%emt 0:03:24]} 9. h3 {[%emt 0:05:37]} h6 {[%emt 0:07:07]} 10. Bf4 {[%emt 0:03:06]} g5 {[%emt 0:05:57]} 11. Bg3 {[%emt 0:03:12]} Kh8 {[%emt 0:03:23]} 12. Nh2 {[%emt 0:05:16]} Rg8 {[%emt 0:06:38]} 13. e5 {[%emt 0:10:39]} dxe5 {[%emt 0:00:31]} 14. dxe5 {[%emt 0:00:11]} Nd5 {[%emt 0:01:44]} 15. Qe4 {[%emt 0:19:25]} Qf8 {[%emt 0:06:53]} 16. c4 {[%emt 0:02:33]} Nf4 {[%emt 0:00:49]} 17. Bxf4 {[%emt 0:04:01]} gxf4 {[%emt 0:00:03]} 18. Qxf4 {[%emt 0:06:31]} Qg7 {[%emt 0:00:58]} 19. Ng4 {[%emt 0:21:28]} h5 {[%emt 0:02:45]} 20. Rd1 {[%emt 0:02:33]} Nb6 {[%emt 0:06:23]} 21. Ne3 {[%emt 0:03:54]} Bg5 {[%emt 0:01:18]} 22. Qf3 {[%emt 0:01:45]} Bxe3 {[%emt 0:00:29]} 23. fxe3 {[%emt 0:00:05]} Qg5 {[%emt 0:01:22]} 24. Nd2 {[%emt 0:03:05]} Qxe5 {[%emt 0:00:57]} 25. Nf1 {[%emt 0:01:17]} Rg7 {[%emt 0:00:31]} 26. Rd2 {[%emt 0:00:35]} Nxc4 {[%emt 0:00:14]} 27. Re2 {[%emt 0:00:21]} Rag8 {[%emt 0:00:48]} 28. Rb1 {[%emt 0:00:30]} b6 {[%emt 0:01:36]} 29. b3 {[%emt 0:00:11]} Nd6 {[%emt 0:00:04]} 30. Rc1 {[%emt 0:00:43]} Nf5 {[%emt 0:00:32]} 31. Qxh5+ {[%emt 0:00:35]} Rh7 {[%emt 0:00:05]} 32. Qf3 {[%emt 0:00:18]} Nh4 {[%emt 0:01:02]} 33. Qf4 {[%emt 0:00:33]} Qh5 {[%emt 0:01:19]} 34. Rf2 {[%emt 0:00:42]} Nf5 {[%emt 0:04:20]} 35. Qe5+ {[%emt 0:00:01]} Rhg7 {[%emt 0:00:49]} 36. e4 {[%emt 0:00:56]} Qg5 {[%emt 0:01:33]} 37. Rcc2 {[%emt 0:00:31]} f6 {[%emt 0:00:12]} 38. Qf4 {[%emt 0:00:34]} Nd4 {[%emt 0:05:56]} 39. Qxg5 {[%emt 0:00:01]} Rxg5 {[%emt 0:00:03]} 40. Rcd2 {[%emt 0:00:15]} R5g6 {[%emt 0:02:50]} 41. Ne3 {[%emt 0:30:20]} Rd8 {[%emt 0:31:14]} 42. Kf1 {[%emt 0:00:31]} Rg3 {[%emt 0:02:58]} 43. Ng4 {[%emt 0:00:00]} Kg7 {[%emt 0:00:00]} 44. Nxf6 {[%emt 0:00:00]} Re3 {[%emt 0:00:00]} 45. h4 {[%emt 0:00:00]} Rh8 {[%emt 0:00:00]} 46. h5 {[%emt 0:00:00]} Rh6 {[%emt 0:00:00]} 47. Ne8+ {[%emt 0:00:00]} Kh8 {[%emt 0:00:00]} 48. g4 {[%emt 0:00:00]} Rxe4 {[%emt 0:00:00]} 49. g5 {[%emt 0:00:00]} Rxh5 {[%emt 0:00:00]} 50. Rf8+ {[%emt 0:00:00]} Kh7 {[%emt 0:00:00]} 51. Nf6+ {[%emt 0:00:00]} Kg7 {[%emt 0:00:00]} 52. Rg8+ {[%emt 0:00:00]} Kf7 {[%emt 0:00:00]} 53. Nxh5 {[%emt 0:00:00]} Rh4 {[%emt 0:00:00]} 54. Rg7+ {[%emt 0:00:00]} Kf8 {[%emt 0:00:00]} 55. Rh7 {[%emt 0:00:00]} Rg4 {[%emt 0:00:00]} 56. Rf2+ {[%emt 0:00:00]} Nf5 {[%emt 0:00:00]} 57. Rxa7 {[%emt 0:00:00]} Rxg5 {[%emt 0:00:00]} 58. Nf4 {[%emt 0:00:23]} Ng3+ {[%emt 0:00:00]} 59. Ke1 {[%emt 0:00:35]} Re5+ {[%emt 0:00:00]} 60. Kd1 {[%emt 0:00:35]} Ke8 {[%emt 0:00:00]} 61. Ng6 {[%emt 0:00:32]} Rd5+ {[%emt 0:00:00]} 62. Kc2 {[%emt 0:00:29]} Nf5 {[%emt 0:00:00]} 63. Rh2 {[%emt 0:01:30]} Rd7 {[%emt 0:00:00]} 64. Rh8+ {[%emt 0:00:59]} Kf7 {[%emt 0:00:00]} 65. Rxd7+ {[%emt 0:00:13]} Kxg6 {[%emt 0:00:00]} 66. Rb7 {[%emt 0:00:41]} Nd4+ {[%emt 0:00:00]} 67. Kd3 {[%emt 0:00:01]} b5 {[%emt 0:00:00]} 68. b4 {[%emt 0:00:13]} Kf5 {[%emt 0:00:00]} 69. bxc5 {[%emt 0:00:13]} Nf3 {[%emt 0:00:02]} 70. Rf8+ {[%emt 0:00:04]} Kg4 {[%emt 0:00:09]} 71. Rg7+ {[%emt 0:00:26]} 1-0

[Event "Prague Festival Futures 2024"]
[Site "Prague"]
[Date "2024.03.01"]
[Round "4.2"]
[White "Stara, Zuzana"]
[Black "Guntaka, Aayansh R"]
[Result "1/2-1/2"]
[ECO "B38"]
[WhiteElo "1674"]
[BlackElo "1651"]
[Annotator "NA RC"]
[PlyCount "128"]
[EventDate "2024.02.22"]
[EventType "tourn"]
[EventCountry "CZE"]
[SourceTitle "playchess.com"]
[Source "ChessBase"]
[SourceQuality "1"]
[TimeControl "40/5400+30:1800+30"]

1. e4 {[%emt 0:00:01]} c5 {[%emt 0:00:11]} 2. Nf3 {[%emt 0:00:06]} Nc6 {[%emt 0:00:12]} 3. d4 {[%emt 0:00:05]} cxd4 {[%emt 0:00:06]} 4. Nxd4 {[%emt 0:00:03]} g6 {[%emt 0:00:18]} 5. c4 {[%emt 0:01:54]} Bg7 {[%emt 0:00:10]} 6. Be3 {[%emt 0:00:05]} Nf6 {[%emt 0:00:10]} 7. Nc3 {[%emt 0:00:17]} O-O {[%emt 0:00:15]} 8. Be2 {[%emt 0:01:14]} d6 {[%emt 0:00:37]} 9. O-O {[%emt 0:01:32]} Bd7 {[%emt 0:00:30]} 10. Qd2 {[%emt 0:02:28]} Nxd4 {[%emt 0:00:15]} 11. Bxd4 {[%emt 0:00:14]} Bc6 {[%emt 0:00:24]} 12. f3 {[%emt 0:09:45]} a5 {[%emt 0:00:05]} 13. Kh1 {[%emt 0:03:28]} Nd7 {[%emt 0:00:38]} 14. Bxg7 {[%emt 0:00:56]} Kxg7 {[%emt 0:00:14]} 15. f4 {[%emt 0:04:36]} Nc5 {[%emt 0:00:12]} 16. Bf3 {[%emt 0:07:38]} a4 {[%emt 0:03:48]} 17. Qd4+ {[%emt 0:05:15]} Kg8 {[%emt 0:05:55]} 18. f5 {[%emt 0:02:12]} f6 {[%emt 0:05:25]} 19. Qe3 {[%emt 0:08:05]} Kg7 {[%emt 0:04:31]} 20. Ne2 {[%emt 0:12:31]} Be8 {[%emt 0:06:40]} 21. Nd4 {[%emt 0:01:20]} Bf7 {[%emt 0:01:04]} 22. Be2 {[%emt 0:07:57]} g5 {[%emt 0:02:34]} 23. Rad1 {[%emt 0:04:59]} Qc8 {[%emt 0:06:02]} 24. Rf3 {[%emt 0:06:44]} h5 {[%emt 0:00:56]} 25. h4 {[%emt 0:07:49]} g4 {[%emt 0:00:00]} 26. Rg3 {[%emt 0:02:11]} Rh8 {[%emt 0:02:33]} 27. Qf4 {[%emt 0:01:27]} Kf8 {[%emt 0:00:14]} 28. Nb5 {[%emt 0:02:52]} Qc6 {[%emt 0:01:10]} 29. Re3 {[%emt 0:02:55]} Nd7 {[%emt 0:01:40]} 30. Rc1 {[%emt 0:02:13]} Ne5 {[%emt 0:00:35]} 31. Rec3 {[%emt 0:00:40]} b6 {[%emt 0:01:10]} 32. Qe3 {[%emt 0:01:13]} Kg7 {[%emt 0:00:20]} 33. Nd4 {[%emt 0:00:34]} Qb7 {[%emt 0:00:39]} 34. Nc2 {[%emt 0:00:35]} Rac8 {[%emt 0:01:44]} 35. Ne1 {[%emt 0:00:24]} Qa6 {[%emt 0:01:20]} 36. b3 {[%emt 0:00:42]} axb3 {[%emt 0:00:39]} 37. axb3 {[%emt 0:00:09]} Qb7 {[%emt 0:01:04]} 38. Nd3 {[%emt 0:00:22]} Nxd3 {[%emt 0:00:23]} 39. Bxd3 {[%emt 0:00:11]} Rc7 {[%emt 0:01:59]} 40. Ra1 {[%emt 0:01:50]} b5 {[%emt 0:00:27]} 41. Qd4 {[%emt 0:16:34]} bxc4 {[%emt 0:00:22]} 42. Bxc4 {[%emt 0:00:36]} Bxc4 {[%emt 0:00:40]} 43. Rxc4 {[%emt 0:00:39]} Rxc4 {[%emt 0:00:27]} 44. Qxc4 {[%emt 0:00:45]} Rc8 {[%emt 0:00:44]} 45. Qd3 {[%emt 0:00:21]} Qb4 {[%emt 0:01:12]} 46. Qd5 {[%emt 0:12:52]} Qc3 {[%emt 0:02:41]} 47. Rd1 {[%emt 0:00:13]} Qg3 {[%emt 0:02:04]} 48. Qb7 {[%emt 0:00:35]} Qxh4+ {[%emt 0:00:31]} 49. Kg1 {[%emt 0:00:03]} Re8 {[%emt 0:03:37]} 50. Rxd6 {[%emt 0:00:45]} g3 {[%emt 0:01:14]} 51. e5 {[%emt 0:01:02]} Qf4 {[%emt 0:04:54]} 52. exf6+ {[%emt 0:00:38]} Kh8 {[%emt 0:01:12]} 53. Rd1 {[%emt 0:01:12]} exf6 {[%emt 0:00:16]} 54. Qf3 {[%emt 0:00:40]} Qxf3 {[%emt 0:00:37]} 55. gxf3 {[%emt 0:00:01]} Kg7 {[%emt 0:05:09]} 56. Kg2 {[%emt 0:00:17]} h4 {[%emt 0:00:35]} 57. Kh3 {[%emt 0:00:28]} Rh8 {[%emt 0:01:30]} 58. Rd4 {[%emt 0:00:34]} Rh5 {[%emt 0:00:45]} 59. Rd5 {[%emt 0:01:24]} Kf7 {[%emt 0:04:03]} 60. f4 {[%emt 0:00:26]} Ke7 {[%emt 0:00:53]} 61. b4 {[%emt 0:00:36]} Rh8 {[%emt 0:00:12]} 62. Rd2 {[%emt 0:00:13]} Rg8 {[%emt 0:06:58]} 63. Rg2 {[%emt 0:00:18]} Rh8 {[%emt 0:00:24]} 64. Rd2 {[%emt 0:00:10]} Rg8 {[%emt 0:01:19]} 1/2-1/2

[Event "Prague Festival Futures 2024"]
[Site "Prague"]
[Date "2024.03.01"]
[Round "4.3"]
[White "Brzezina, Pawel"]
[Black "Aansh Nandan Nerurkar"]
[Result "1/2-1/2"]
[ECO "E12"]
[WhiteElo "1834"]
[BlackElo "1891"]
[Annotator "NA RC"]
[PlyCount "60"]
[EventDate "2024.02.22"]
[EventType "tourn"]
[EventCountry "CZE"]
[SourceTitle "playchess.com"]
[Source "ChessBase"]
[SourceQuality "1"]
[TimeControl "40/5400+30:1800+30"]

1. d4 {[%emt 0:00:42]} Nf6 {[%emt 0:00:07]} 2. c4 {[%emt 0:00:58]} e6 {[%emt 0:00:06]} 3. Nf3 {[%emt 0:00:56]} b6 {[%emt 0:00:07]} 4. a3 {[%emt 0:01:13]} Bb7 {[%emt 0:00:12]} 5. Nc3 {[%emt 0:00:51]} Be7 {[%emt 0:00:09]} 6. d5 {[%emt 0:02:13]} O-O {[%emt 0:00:50]} 7. e4 {[%emt 0:01:15]} d6 {[%emt 0:00:28]} 8. Bd3 {[%emt 0:01:48]} Nbd7 {[%emt 0:00:50]} 9. O-O {[%emt 0:02:02]} e5 {[%emt 0:00:10]} 10. h3 {[%emt 0:05:47]} a5 {[%emt 0:01:07]} 11. Be3 {[%emt 0:02:00]} Nh5 {[%emt 0:01:47]} 12. b4 {[%emt 0:20:16]} Nf4 {[%emt 0:01:23]} 13. Bxf4 {[%emt 0:00:35]} exf4 {[%emt 0:00:08]} 14. Ne2 {[%emt 0:03:24]} g5 {[%emt 0:02:05]} 15. Ned4 {[%emt 0:08:36]} Ne5 {[%emt 0:01:42]} 16. Nxe5 {[%emt 0:01:03]} dxe5 {[%emt 0:00:27]} 17. Nf5 {[%emt 0:00:28]} Bc8 {[%emt 0:04:22]} 18. Nh6+ {[%emt 0:04:40]} Kg7 {[%emt 0:00:13]} 19. Qh5 {[%emt 0:00:18]} Qd6 {[%emt 0:01:28]} 20. Nf5+ {[%emt 0:01:23]} Bxf5 {[%emt 0:02:53]} 21. exf5 {[%emt 0:00:19]} Qf6 {[%emt 0:01:13]} 22. Be4 {[%emt 0:06:28]} Ra7 {[%emt 0:01:09]} 23. b5 {[%emt 0:09:03]} Qh6 {[%emt 0:03:32]} 24. Qxh6+ {[%emt 0:03:12]} Kxh6 {[%emt 0:00:08]} 25. a4 {[%emt 0:00:10]} Kg7 {[%emt 0:00:24]} 26. g3 {[%emt 0:01:29]} fxg3 {[%emt 0:01:54]} 27. fxg3 {[%emt 0:00:16]} Kf6 {[%emt 0:00:12]} 28. Kg2 {[%emt 0:01:30]} Bd6 {[%emt 0:00:18]} 29. Kf3 {[%emt 0:01:16]} h5 {[%emt 0:00:15]} 30. Ke2 {[%emt 0:01:45]} Raa8 {[%emt 0:00:14]} 1/2-1/2

[Event "Prague Festival Futures 2024"]
[Site "Prague"]
[Date "2024.03.01"]
[Round "4.4"]
[White "Peglau, Paul David"]
[Black "Markina, Sofiia"]
[Result "1-0"]
[ECO "E07"]
[WhiteElo "1764"]
[BlackElo "1680"]
[Annotator "NA RC"]
[PlyCount "97"]
[EventDate "2024.02.22"]
[EventType "tourn"]
[EventCountry "CZE"]
[SourceTitle "playchess.com"]
[Source "ChessBase"]
[SourceQuality "1"]
[TimeControl "40/5400+30:1800+30"]

1. c4 {[%emt 0:00:02]} e6 {[%emt 0:00:19]} 2. Nc3 {[%emt 0:00:07]} d5 {[%emt 0:00:23]} 3. d4 {[%emt 0:00:07]} Be7 {[%emt 0:00:14]} 4. Nf3 {[%emt 0:00:08]} Nf6 {[%emt 0:00:12]} 5. g3 {[%emt 0:00:08]} O-O {[%emt 0:00:39]} 6. Bg2 {[%emt 0:00:05]} c6 {[%emt 0:03:15]} 7. O-O {[%emt 0:00:12]} Nbd7 {[%emt 0:00:34]} 8. Qb3 {[%emt 0:02:59]} Re8 {[%emt 0:07:05]} 9. Bf4 {[%emt 0:03:30]} Nf8 {[%emt 0:02:08]} 10. Ne5 {[%emt 0:02:15]} Ng6 {[%emt 0:06:37]} 11. Rac1 {[%emt 0:03:28]} Bd6 {[%emt 0:21:28]} 12. Nxg6 {[%emt 0:03:16]} hxg6 {[%emt 0:03:42]} 13. Bxd6 {[%emt 0:00:24]} Qxd6 {[%emt 0:00:12]} 14. Rfd1 {[%emt 0:00:59]} Rb8 {[%emt 0:09:03]} 15. e4 {[%emt 0:01:27]} dxe4 {[%emt 0:00:24]} 16. Nxe4 {[%emt 0:03:43]} Nxe4 {[%emt 0:00:11]} 17. Bxe4 {[%emt 0:00:01]} e5 {[%emt 0:07:26]} 18. d5 {[%emt 0:02:38]} Bg4 {[%emt 0:02:51]} 19. c5 {[%emt 0:04:25]} Bxd1 {[%emt 0:00:45]} 20. Qxd1 {[%emt 0:00:29]} Qc7 {[%emt 0:02:36]} 21. d6 {[%emt 0:00:20]} Qd7 {[%emt 0:00:04]} 22. b4 {[%emt 0:01:19]} Red8 {[%emt 0:01:01]} 23. Qb3 {[%emt 0:00:38]} Kh8 {[%emt 0:04:42]} 24. Qc3 {[%emt 0:02:32]} Qe6 {[%emt 0:01:44]} 25. Bd3 {[%emt 0:01:13]} Rd7 {[%emt 0:03:20]} 26. Re1 {[%emt 0:01:42]} Re8 {[%emt 0:04:07]} 27. f4 {[%emt 0:01:23]} Qxa2 {[%emt 0:01:36]} 28. Bc4 {[%emt 0:00:45]} Qa4 {[%emt 0:00:36]} 29. Ra1 {[%emt 0:00:12]} Qxa1+ {[%emt 0:00:19]} 30. Qxa1 {[%emt 0:00:01]} exf4 {[%emt 0:00:21]} 31. gxf4 {[%emt 0:00:07]} a6 {[%emt 0:02:46]} 32. Qf1 {[%emt 0:00:50]} Kg8 {[%emt 0:01:23]} 33. Qh3 {[%emt 0:00:19]} Rdd8 {[%emt 0:02:31]} 34. Qh4 {[%emt 0:00:41]} Rd7 {[%emt 0:00:49]} 35. Qg4 {[%emt 0:00:16]} Red8 {[%emt 0:00:50]} 36. Qxg6 {[%emt 0:00:07]} b6 {[%emt 0:01:43]} 37. Qg4 {[%emt 0:00:15]} a5 {[%emt 0:01:04]} 38. b5 {[%emt 0:01:25]} cxb5 {[%emt 0:02:39]} 39. Bxb5 {[%emt 0:01:33]} Ra7 {[%emt 0:01:41]} 40. c6 {[%emt 0:02:15]} Rxd6 {[%emt 0:00:18]} 41. Qc8+ {[%emt 0:30:09]} Kh7 {[%emt 0:30:03]} 42. c7 {[%emt 0:00:17]} a4 {[%emt 0:00:57]} 43. Qh3+ {[%emt 0:00:09]} Rh6 {[%emt 0:00:12]} 44. Qxh6+ {[%emt 0:00:31]} gxh6 {[%emt 0:01:44]} 45. c8=Q {[%emt 0:00:10]} a3 {[%emt 0:00:23]} 46. Qf8 {[%emt 0:01:12]} Kg6 {[%emt 0:00:37]} 47. Bd3+ {[%emt 0:00:13]} Kf6 {[%emt 0:00:24]} 48. Qxh6+ {[%emt 0:00:12]} Ke7 {[%emt 0:00:08]} 49. Qxb6 {[%emt 0:00:19]} 1-0

[Event "Prague Festival Futures 2024"]
[Site "Prague"]
[Date "2024.03.01"]
[Round "4.5"]
[White "Andre, Tomas"]
[Black "Jakubse, Tamae Severina"]
[Result "1-0"]
[ECO "C56"]
[WhiteElo "1829"]
[BlackElo "1735"]
[Annotator "NA RC"]
[PlyCount "55"]
[EventDate "2024.02.22"]
[EventType "tourn"]
[EventCountry "CZE"]
[SourceTitle "playchess.com"]
[Source "ChessBase"]
[SourceQuality "1"]
[TimeControl "40/5400+30:1800+30"]

1. e4 {[%emt 0:00:07]} e5 {[%emt 0:00:02]} 2. Nf3 {[%emt 0:00:11]} Nc6 {[%emt 0:00:06]} 3. d4 {[%emt 0:00:11]} exd4 {[%emt 0:00:07]} 4. Bc4 {[%emt 0:00:09]} Nf6 {[%emt 0:00:14]} 5. e5 {[%emt 0:00:19]} d5 {[%emt 0:00:20]} 6. Bb5 {[%emt 0:00:11]} Ne4 {[%emt 0:00:10]} 7. Nxd4 {[%emt 0:00:29]} Bd7 {[%emt 0:00:29]} 8. Bxc6 {[%emt 0:00:53]} bxc6 {[%emt 0:00:16]} 9. O-O {[%emt 0:00:58]} Bc5 {[%emt 0:01:42]} 10. Be3 {[%emt 0:00:16]} Bb6 {[%emt 0:01:36]} 11. f3 {[%emt 0:00:35]} Ng5 {[%emt 0:01:32]} 12. f4 {[%emt 0:00:42]} Ne4 {[%emt 0:00:48]} 13. Nc3 {[%emt 0:19:29]} Nxc3 {[%emt 0:13:41]} 14. bxc3 {[%emt 0:00:14]} O-O {[%emt 0:01:39]} 15. Re1 {[%emt 0:10:01]} Re8 {[%emt 0:10:50]} 16. Bf2 {[%emt 0:09:46]} Qe7 {[%emt 0:11:08]} 17. a4 {[%emt 0:08:26]} a5 {[%emt 0:07:18]} 18. Qf3 {[%emt 0:06:54]} c5 {[%emt 0:08:58]} 19. Ne2 {[%emt 0:02:45]} c6 {[%emt 0:10:02]} 20. Ng3 {[%emt 0:01:58]} f6 {[%emt 0:02:08]} 21. e6 {[%emt 0:01:27]} Bc8 {[%emt 0:02:18]} 22. Rab1 {[%emt 0:01:35]} Qa7 {[%emt 0:04:02]} 23. Qg4 {[%emt 0:00:52]} Rb8 {[%emt 0:03:35]} 24. Nh5 {[%emt 0:00:31]} Qe7 {[%emt 0:01:18]} 25. f5 {[%emt 0:01:16]} Ba6 {[%emt 0:01:15]} 26. Kh1 {[%emt 0:01:00]} Bc7 {[%emt 0:05:56]} 27. Rxb8 {[%emt 0:00:58]} Rxb8 {[%emt 0:00:31]} 28. Bxc5 {[%emt 0:00:19]} 1-0

[Event "Prague Festival Futures 2024"]
[Site "Prague"]
[Date "2024.03.02"]
[Round "5.1"]
[White "Jakubse, Tamae Severina"]
[Black "Siskou, Evangelia"]
[Result "1-0"]
[ECO "B22"]
[WhiteElo "1735"]
[BlackElo "1680"]
[Annotator "NA RC"]
[PlyCount "39"]
[EventDate "2024.02.22"]
[EventType "tourn"]
[EventCountry "CZE"]
[SourceTitle "playchess.com"]
[Source "ChessBase"]
[SourceQuality "1"]
[TimeControl "40/5400+30:1800+30"]

1. e4 {[%emt 0:00:03]} c5 {[%emt 0:01:04]} 2. c3 {[%emt 0:00:08]} d5 {[%emt 0:00:44]} 3. exd5 {[%emt 0:00:15]} Qxd5 {[%emt 0:00:34]} 4. d4 {[%emt 0:00:09]} Nf6 {[%emt 0:00:33]} 5. Nf3 {[%emt 0:00:08]} e6 {[%emt 0:00:41]} 6. Na3 {[%emt 0:00:08]} Nc6 {[%emt 0:00:56]} 7. Be3 {[%emt 0:01:29]} cxd4 {[%emt 0:01:02]} 8. Nb5 {[%emt 0:00:30]} Qd7 {[%emt 0:00:39]} 9. Nbxd4 {[%emt 0:00:49]} a6 {[%emt 0:00:48]} 10. Be2 {[%emt 0:05:15]} Bd6 {[%emt 0:02:26]} 11. O-O {[%emt 0:01:17]} Ne7 {[%emt 0:01:31]} 12. Nd2 {[%emt 0:15:39]} Qc7 {[%emt 0:08:19]} 13. h3 {[%emt 0:04:26]} Nfd5 {[%emt 0:06:35]} 14. Ne4 {[%emt 0:06:27]} Nxe3 {[%emt 0:07:46]} 15. fxe3 {[%emt 0:00:09]} O-O {[%emt 0:01:47]} 16. Bd3 {[%emt 0:06:08]} Ng6 {[%emt 0:19:05]} 17. Qh5 {[%emt 0:07:03]} Be7 {[%emt 0:04:05]} 18. Nf3 {[%emt 0:05:43]} Qb6 {[%emt 0:03:37]} 19. Rae1 {[%emt 0:06:39]} Nf4 {[%emt 0:02:27]} 20. Nf6+ {[%emt 0:03:25]} 1-0